lending/lending_fUSD_20240219
["ID","MTS","AMOUNT","RATE_DAILY","PERIOD"]
[314462139,1708367484183,-387.12945048,0.00040597,3]
[314462140,1708367484195,-1319.35642755,0.00040597,3]
[314462141,1708367484207,-8314.8369213,0.00040597,3]
[314462142,1708367484218,-33695.65570962,0.00040597,3]
[314462143,1708367484229,-31474.08545969,0.00040597,3]
[314462144,1708367484241,-2692.57235427,0.00040597,3]
[314462145,1708368006873,177.14,0.00016712,2]
[314462147,1708368437808,-600.0,0.00025429,2]
[314462148,1708368439051,550.0,0.00025,3]
[314462153,1708368545115,-251.24473156,0.00025429,2]
[314462154,1708368545136,-535.40994288,0.00025429,2]
[314462156,1708368545160,-184.62835549,0.0002543,2]
[314462157,1708368545181,-2316.10987007,0.00025431,2]
[314462159,1708368564103,-200.0,0.00025304,2]
[314462160,1708368564128,-671.58952993,0.00025431,2]
[314462161,1708368564150,-188.98214303,0.00025531,2]
[314462162,1708368564175,-170.24,0.00025534,2]
[314462163,1708368564196,-600.0,0.00027,3]
[314462164,1708368564216,-19561.10333478,0.00027,2]
[314462165,1708368564237,-200.38089264,0.00028,2]
[314462166,1708368564258,-417.14334245,0.0002805,2]
[314462167,1708368564283,-205.10141995,0.00028052,2]
[314462168,1708368564304,-535.40994288,0.00028151,2]
[314462169,1708368564325,-300.0,0.00028152,2]
[314462170,1708368564346,-150.0,0.00028152,2]
[314462171,1708368564368,-15637.44,0.00028153,2]
[314462172,1708368564393,-299.99,0.00028153,12]
[314462173,1708368564414,-1645.35,0.00028153,2]
[314462174,1708368564439,-839.23,0.00028153,2]
[314462175,1708368564459,-715.35,0.00028153,2]
[314462176,1708368564482,-205.10141978,0.00028612,2]
[314462177,1708368564504,-896.88,0.00028821,2]
[314462178,1708368564524,-650.0,0.00029,3]
[314462179,1708368564546,-205.10141978,0.00029173,2]
[314462180,1708368564567,-205.10141978,0.00029733,2]
[314462181,1708368564588,-205.10141978,0.00030293,2]
[314462182,1708368564609,-200.0,0.00030311,2]
[314462183,1708368564629,-1746.04,0.00030356,10]
[314462184,1708368564648,-500.0,0.00030451,2]
[314462185,1708368564671,-150.0,0.00030474,2]
[314462186,1708368564692,-2535.92,0.00030613,2]
[314462187,1708368564714,-3400.56,0.00030644,2]
[314462188,1708368564736,-250.0,0.00030664,2]
[314462189,1708368564758,-8616.57,0.00030673,2]
[314462190,1708368564778,-249.98,0.000307,2]
[314462191,1708368564800,-2000.0,0.00030707,2]
[314462192,1708368564821,-1250.8715308,0.00030721,28]
[314462193,1708368564841,-150.99,0.00030721,2]
[314462194,1708368564863,-206.0,0.0003075,2]
[314462195,1708368564885,-205.10141978,0.00030854,2]
[314462196,1708368564906,-312.89,0.0003087,2]
[314462197,1708368564927,-210.0,0.00030967,2]
[314462198,1708368564948,-700.0,0.00031,3]
[314462199,1708368564971,-923.2,0.0003108,2]
[314462200,1708368564993,-896.88,0.00031084,2]
[314462201,1708368565015,-1746.04,0.000311,10]
[314462202,1708368565036,-7213.98,0.00031316,2]
[314462203,1708368565056,-24755.96234135,0.00031317,2]
[314462204,1708368568444,-1445.0,0.0002543,2]
[314462205,1708368568464,-851.24473156,0.00028151,3]
[314462206,1708368568484,-7366.64765865,0.00031317,2]
[314462207,1708368568503,-8366.38,0.00031317,2]
[314462208,1708368568523,-499.99,0.00031317,2]
[314462209,1708368568543,-205.10141978,0.00031414,2]
[314462210,1708368568563,-228.59647435,0.00031806,7]
[314462211,1708368568582,-7520.72,0.00031806,2]
[314462212,1708368568602,-1746.04,0.00031844,10]
[314462213,1708368568622,-1109.59,0.00031883,2]
[314462214,1708368568644,-1554.13,0.00031883,2]
[314462215,1708368568666,-1492.62,0.00031883,2]
[314462216,1708368568686,-200.0,0.00031883,2]
[314462217,1708368568707,-292.67171566,0.00031883,2]
[314462220,1708368572288,-10000.0,0.00030234,2]
[314462221,1708368572308,-178.02828434,0.00031883,2]
[314462222,1708368572329,-600.0,0.00031883,2]
[314462223,1708368572349,-500.0,0.00031918,2]
[314462224,1708368572370,-200.0,0.00031918,2]
[314462225,1708368572392,-750.0,0.00031939,2]
[314462226,1708368572415,-9955.50471566,0.00031939,2]
[314462232,1708368632207,-250.0,0.00031883,2]
[314462233,1708368632217,-1850.02266968,0.00031939,2]
[314462234,1708368632281,-658.46,0.00031939,2]
[314462235,1708368632294,-388.42893379,0.00031939,2]
[314462236,1708368632306,-522.71044443,0.00031939,2]
[314462237,1708368632318,-2794.9,0.00031939,2]
[314462238,1708368632330,-3443.36040815,0.00031939,2]
[314462239,1708368632401,-833.5017272,0.00031939,2]
[314462240,1708368632413,-439.62247958,0.00031939,2]
[314462241,1708368632425,-1527.22007561,0.00031939,2]
[314462242,1708368632467,-1486.2685459,0.00031939,2]
[314462243,1708368632477,-205.10141978,0.00031975,2]
[314462244,1708368632487,-381.01356882,0.00031975,2]
[314462245,1708368632503,-118.97643118,0.00031975,2]
[314462247,1708368632513,-180.44,0.00032028,2]
[314462248,1708368632523,-1109.59,0.00032067,2]
[314462249,1708368632532,-195.76,0.00032122,2]
[314462250,1708368632542,-315.44,0.00032138,2]
[314462251,1708368632551,-1386.63,0.00032138,2]
[314462252,1708368632560,-400.0,0.00032206,2]
[314462253,1708368632569,-1473.54627998,0.00032206,2]
[314462255,1708368632583,-552.91,0.00032206,2]
[314462273,1708368638135,-1143.706933,0.00031882,3]
[314462274,1708368638144,-719.36076778,0.00031882,4]
[314462275,1708368638154,-525.98872002,0.00032206,2]
[314462276,1708368638163,-69.40144897,0.0003221,2]
[314462277,1708368638230,-126.35855103,0.0003221,2]
[314462278,1708368638239,-1109.59,0.00032251,2]
[314462279,1708368638249,-195.76,0.00032298,2]
[314462280,1708368638259,-374.06760715,0.00032317,2]
[314462281,1708368638374,-2150.57796973,0.00032317,2]
[314462282,1708368638387,-3873.77225467,0.00032317,2]
[314462283,1708368638400,-598.24385606,0.00032317,2]
[314462284,1708368638437,-1619.90831239,0.00032317,2]
[314462285,1708368638447,-195.76,0.00032386,2]
[314462286,1708368638457,-1109.59,0.00032436,2]
[314462287,1708368638471,-195.76,0.00032475,2]
[314462288,1708368638480,-31426.85615962,0.00032515,2]
[314462289,1708368638505,-1190.73171,0.00032515,2]
[314462290,1708368638533,-413.16213038,0.00032515,2]
[314462291,1708368638542,-205.10141978,0.00032535,2]
[314462292,1708368638551,-195.76,0.00032563,2]
[314462293,1708368638561,-200.0,0.00032574,2]
[314462294,1708368638571,-2892.02,0.00032574,2]
[314462295,1708368638580,-402.48,0.00032574,2]
[314462296,1708368638589,-1746.04,0.00032588,10]
[314462297,1708368638599,-1109.59,0.0003262,2]
[314462298,1708368638609,-195.76,0.00032651,2]
[314462299,1708368638618,-206.0,0.00032675,2]
[314462300,1708368638628,-195.76,0.00032739,2]
[314462301,1708368638637,-1109.59,0.00032804,2]
[314462303,1708368638647,-195.76,0.00032827,2]
[314462305,1708368638657,-37348.21,0.00032877,2]
[314462306,1708368638667,-8000.0,0.000329,2]
[314462308,1708368638677,-195.76,0.00032915,2]
[314462310,1708368638687,-1109.59,0.00032988,2]
[314462312,1708368638697,-750.0,0.00033,3]
[314462314,1708368638706,-195.76,0.00033003,2]
[314462316,1708368638718,-195.76,0.00033091,2]
[314462318,1708368638728,-205.10141978,0.00033095,2]
[314462320,1708368638737,-1109.59,0.00033173,2]
[314462322,1708368638747,-195.76,0.00033179,2]
[314462323,1708368638757,-300.0,0.00033253,2]
[314462325,1708368638767,-195.76,0.00033268,2]
[314462326,1708368638778,-182.35,0.00033324,2]
[314462327,1708368638787,-1746.04,0.00033331,10]
[314462328,1708368638797,-896.88,0.00033348,2]
[314462329,1708368638807,-195.76,0.00033356,2]
[314462330,1708368638817,-1109.59,0.00033357,2]
[314462331,1708368638827,-150.0,0.00033369,2]
[314462332,1708368638837,-195.76,0.00033444,2]
[314462333,1708368638847,-1554.13,0.00033477,2]
[314462334,1708368638858,-250.0,0.00033528,2]
[314462335,1708368638868,-195.76,0.00033532,2]
[314462336,1708368638877,-1109.59,0.00033541,2]
[314462337,1708368638887,-195.76,0.0003362,2]
[314462338,1708368638898,-205.10141978,0.00033656,2]
[314462339,1708368638908,-1681.23,0.00033679,2]
[314462340,1708368638917,-195.76,0.00033708,2]
[314462341,1708368638928,-195.76,0.00033796,2]
[314462342,1708368638937,-150.0,0.0003383,2]
[314462343,1708368638946,-8616.57,0.00033961,2]
[314462344,1708368638956,-293.0,0.00034064,3]
[314462345,1708368638969,-2378.0,0.000341,3]
[314462346,1708368638978,-17029.0,0.000341,3]
[314462347,1708368638989,-511.21850476,0.00034116,6]
[314462348,1708368638999,-8000.0,0.000342,2]
[314462349,1708368639011,-205.10141978,0.00034216,2]
[314462350,1708368639021,-392.66407141,0.00034519,30]
[314462351,1708368639031,-1411.502476,0.0003452,2]
[314462352,1708368639040,-360.359086,0.0003452,2]
[314462353,1708368639050,-2117.253715,0.0003452,2]
[314462354,1708368639061,-5566.36,0.00034521,2]
[314462355,1708368639071,-150.0,0.00034548,10]
[314462356,1708368639080,-165.66,0.00034555,2]
[314462357,1708368639091,-561.58,0.00034555,2]
[314462358,1708368639102,-300.0,0.00034623,2]
[314462359,1708368639111,-180.44,0.00034768,120]
[314462360,1708368639120,-205.10141978,0.00034776,2]
[314462361,1708368639130,-2117.253715,0.00034794,2]
[314462362,1708368639139,-540.538629,0.00034794,2]
[314462363,1708368639149,-3175.880572,0.00034794,2]
[314462364,1708368639158,-1681.23,0.0003487,2]
[314462365,1708368639168,-2823.004953,0.00034931,2]
[314462366,1708368639178,-720.718173,0.00034931,2]
[314462367,1708368639187,-4234.50743,0.00034931,2]
[314462368,1708368639196,-150.0,0.00034948,2]
[314462369,1708368639206,-2000.0,0.00035,4]
[314462370,1708368639218,-800.0,0.00035,3]
[314462371,1708368639227,-3528.756191,0.00035068,2]
[314462372,1708368639236,-900.897716,0.00035068,2]
[314462373,1708368639245,-5293.134288,0.00035068,2]
[314462374,1708368639255,-1554.13,0.00035071,2]
[314462375,1708368639264,-165.66,0.00035246,2]
[314462376,1708368639273,-155.0,0.00035319,4]
[314462377,1708368639283,-712.11779661,0.0003532,4]
[314462378,1708368639293,-181.72443109,0.0003532,4]
[314462379,1708368639302,-38478.74414333,0.00035332,2]
[314462380,1708368639311,-205.10141978,0.00035337,2]
[314462381,1708368639320,-4940.258668,0.00035342,2]
[314462382,1708368639330,-1261.256803,0.00035342,2]
[314462383,1708368639339,-7410.388003,0.00035342,2]
[314462384,1708368639348,-166.76,0.0003551,2]
[314462385,1708368639357,-1211.28691609,0.00035598,4]
[314462386,1708368639367,-515.97745498,0.00035599,4]
[314462387,1708368639376,-8000.0,0.000356,2]
[314462388,1708368639386,-8616.57,0.00035605,2]
[314462389,1708368639395,-896.88,0.00035612,2]
[314462390,1708368639405,-1500.0,0.00035616,10]
[314462391,1708368639414,-206.0,0.00035711,8]
[314462392,1708368639423,-5566.36,0.00035798,2]
[314462393,1708368639432,-600.0,0.00035868,2]
[314462394,1708368639441,-205.10141978,0.00035897,2]
[314462395,1708368639450,-165.66,0.00035937,2]
[314462396,1708368639459,-511.21850472,0.00036038,7]
[314462397,1708368639470,-1681.23,0.00036062,2]
[314462398,1708368639480,-150.0,0.00036067,2]
[314462399,1708368639489,-400.0,0.00036231,2]
[314462400,1708368639498,-46480.79913328,0.00036389,2]
[314462401,1708368639508,-46480.79913319,0.00036389,2]
[314462402,1708368639517,-46480.79913319,0.00036389,2]
[314462403,1708368639525,-248.37,0.00036426,2]
[314462404,1708368639534,-205.10141978,0.00036458,2]
[314462405,1708368639543,-165.66,0.00036628,2]
[314462406,1708368639553,-1554.13,0.00036666,2]
[314462407,1708368639562,-807.08140029,0.00036798,2]
[314462408,1708368639572,-807.08140027,0.00036798,2]
[314462409,1708368639581,-155.0,0.000369,2]
[314462410,1708368639591,-4559.0,0.00037,2]
[314462411,1708368639601,-205.10141978,0.00037018,2]
[314462412,1708368639610,-5566.36,0.00037075,2]
[314462413,1708368639619,-150.0,0.00037185,2]
[314462414,1708368639628,-8616.57,0.00037249,2]
[314462415,1708368639638,-1681.23,0.00037253,2]
[314462416,1708368639647,-165.66,0.00037319,2]
[314462417,1708368639658,-1169.96797914,0.00037395,2]
[314462418,1708368639667,-1169.96797914,0.00037395,2]
[314462419,1708368639677,-168.02,0.00037397,2]
[314462420,1708368639688,-411.0,0.0003747,3]
[314462421,1708368639697,-46480.79913319,0.00037534,2]
[314462422,1708368639706,-205.10141978,0.00037578,2]
[314462423,1708368639717,-169.0,0.00037597,2]
[314462424,1708368639726,-180.0,0.00037671,2]
[314462425,1708368639736,-222.93625807,0.00037699,2]
[314462426,1708368639746,-2065.81327454,0.00037699,2]
[314462427,1708368639755,-204.51232838,0.00037699,12]
[314462428,1708368639765,-224.87954792,0.00037788,2]
[314462429,1708368639777,-215.82244978,0.00037796,4]
[314462430,1708368639787,-392.6640714,0.00037797,30]
[314462431,1708368639798,-410929.74179472,0.00037798,2]
[314462432,1708368639808,-408.87834854,0.00037799,4]
[314462433,1708368639817,-300.0,0.000378,2]
[314462434,1708368639828,-1000.0,0.000378,2]
[314462435,1708368639837,-171.59016075,0.00037823,2]
[314462436,1708368639847,-153.07672139,0.00037823,2]
[314462437,1708368639856,-896.88,0.00037876,2]
[314462438,1708368639866,-163102.153926,0.000379,3]
[314462439,1708368639875,-511.21850472,0.0003796,8]
[314462440,1708368639885,-165.66,0.0003801,2]
[314462441,1708368639895,-205.10141978,0.00038139,2]
[314462442,1708368639905,-2507.73,0.0003825,2]
[314462443,1708368639915,-1554.13,0.0003826,2]
[314462444,1708368639925,-155.0,0.0003827,2]
[314462445,1708368639934,-150.0,0.00038303,2]
[314462446,1708368639944,-5566.36,0.00038352,2]
[314462447,1708368639954,-201.70261338,0.00038356,2]
[314462448,1708368639965,-371.37,0.00038356,15]
[314462449,1708368639974,-150.0,0.00038356,2]
[314462450,1708368639986,-153.07672135,0.00038392,2]
[314462451,1708368639997,-4559.25151199,0.000384,2]
[314462452,1708368640007,-1681.23,0.00038444,2]
[314462453,1708368640017,-248.37,0.0003845,2]
[314462454,1708368640029,-2507.73,0.00038451,2]
[314462455,1708368640039,-167.70421903,0.00038523,12]
[314462456,1708368640049,-222.93625806,0.00038523,2]
[314462457,1708368640059,-163102.153926,0.00038613,4]
[314462458,1708368640069,-500.0,0.00038622,2]
[314462459,1708368640079,-500.0,0.00038622,2]
[314462460,1708368640090,-500.0,0.00038622,2]
[314462461,1708368640099,-500.0,0.00038622,2]
[314462462,1708368640108,-500.0,0.00038622,2]
[314462463,1708368640118,-500.0,0.00038622,2]
[314462464,1708368640127,-500.0,0.00038622,2]
[314462465,1708368640136,-500.0,0.00038622,2]
[314462466,1708368640145,-500.0,0.00038622,2]
[314462467,1708368640154,-500.0,0.00038622,2]
[314462468,1708368640163,-500.0,0.00038622,2]
[314462469,1708368640174,-500.0,0.00038622,2]
[314462470,1708368640183,-500.0,0.00038622,2]
[314462471,1708368640192,-500.0,0.00038622,2]
[314462472,1708368640201,-500.0,0.00038622,2]
[314462473,1708368640210,-500.0,0.00038622,2]
[314462474,1708368640222,-500.0,0.00038622,2]
[314462475,1708368640231,-500.0,0.00038622,2]
[314462476,1708368640240,-500.0,0.00038622,2]
[314462477,1708368640249,-500.0,0.00038622,2]
[314462478,1708368640259,-202582.78822009,0.00038623,15]
[314462479,1708368640269,-10878.2543161,0.00038623,15]
[314462480,1708368640279,-299.93388655,0.00038628,10]
[314462481,1708368640288,-2507.73,0.00038652,2]
[314462482,1708368640298,-5000.0,0.00038699,3]
[314462483,1708368640307,-205.10141978,0.00038699,2]
[314462484,1708368640316,-768.01705478,0.00038699,2]
[314462485,1708368640326,-1103.74532981,0.00038699,2]
[314462486,1708368640335,-1074.39993269,0.00038699,2]
[314462487,1708368640344,-171382.68,0.000387,30]
[314462488,1708368640353,-206.0,0.00038747,14]
[314462489,1708368640363,-809.54,0.00038767,2]
[314462490,1708368640372,-163102.153926,0.00038789,4]
[314462491,1708368640382,-17764.9063,0.0003879,2]
[314462492,1708368640391,-895.5308,0.0003879,2]
[314462493,1708368640400,-7256.0517,0.0003879,2]
[314462494,1708368640411,-222.989,0.0003879,3]
[314462495,1708368640421,-739.0699,0.0003879,2]
[314462496,1708368640430,-3524.86447292,0.0003879,4]
[314462497,1708368640439,-156.383,0.00038799,2]
[314462498,1708368640449,-100000.0,0.00038799,2]
[314462499,1708368640458,-500.0,0.00038799,2]
[314462500,1708368640467,-1000.0,0.00038799,2]
[314462501,1708368640477,-245000.0,0.00038799,2]
[314462502,1708368640486,-11341.26736843,0.00038799,2]
[314462503,1708368640495,-215.98132704,0.00038799,2]
[314462504,1708368640505,-2507.73,0.00038854,2]
[314462505,1708368640514,-81551.0769631,0.0003889,4]
[314462506,1708368640523,-8616.57,0.00038892,2]
[314462507,1708368640532,-177.53,0.000389,2]
[314462508,1708368640542,-150.0,0.000389,2]
[314462509,1708368640551,-500.0,0.000389,2]
[314462510,1708368640560,-259.01,0.000389,30]
[314462511,1708368640569,-3000.0,0.000389,2]
[314462512,1708368640579,-3000.0,0.000389,2]
[314462513,1708368640588,-3000.0,0.000389,2]
[314462514,1708368640597,-3000.0,0.000389,2]
[314462515,1708368640606,-3000.0,0.000389,2]
[314462516,1708368640615,-3000.0,0.000389,2]
[314462517,1708368640624,-3000.0,0.000389,2]
[314462518,1708368640633,-3000.0,0.000389,2]
[314462519,1708368640642,-3000.0,0.000389,2]
[314462521,1708368640651,-3000.0,0.000389,2]
[314462522,1708368640660,-3000.0,0.000389,2]
[314462523,1708368640670,-3000.0,0.000389,2]
[314462524,1708368640679,-3000.0,0.000389,2]
[314462525,1708368640689,-3000.0,0.000389,2]
[314462526,1708368640698,-4842.90253915,0.000389,2]
[314462527,1708368640708,-515.35,0.000389,3]
[314462528,1708368640718,-515.35,0.000389,3]
[314462530,1708368640727,-515.35,0.000389,3]
[314462531,1708368640736,-515.35,0.000389,3]
[314462532,1708368640746,-515.35,0.000389,3]
[314462533,1708368640755,-515.35,0.000389,3]
[314462534,1708368640764,-515.35,0.000389,3]
[314462535,1708368640774,-515.35,0.000389,3]
[314462536,1708368640783,-515.35,0.000389,3]
[314462537,1708368640793,-515.35,0.000389,3]
[314462538,1708368640802,-515.35,0.000389,3]
[314462539,1708368640811,-515.35,0.000389,3]
[314462540,1708368640821,-515.35,0.000389,3]
[314462541,1708368641050,-515.35,0.000389,3]
[314462542,1708368641060,-515.35,0.000389,3]
[314462543,1708368641070,-515.35,0.000389,3]
[314462544,1708368641079,-515.35,0.000389,3]
[314462545,1708368641090,-515.35,0.000389,3]
[314462546,1708368641101,-515.35,0.000389,3]
[314462547,1708368641110,-515.35,0.000389,3]
[314462548,1708368641120,-153.07672135,0.0003896,2]
[314462549,1708368641129,-900.0,0.00039,4]
[314462550,1708368641138,-259.01,0.00039037,30]
[314462551,1708368641147,-2507.73,0.00039055,2]
[314462552,1708368641156,-259.01,0.00039174,30]
[314462553,1708368641166,-150.0,0.000392,2]
[314462554,1708368641175,-152.0,0.00039225,3]
[314462555,1708368641184,-2507.73,0.00039256,2]
[314462556,1708368641194,-2065.81327454,0.00039278,2]
[314462557,1708368641203,-515.37,0.00039311,30]
[314462558,1708368641212,-46480.79913319,0.00039344,2]
[314462559,1708368641223,-222.93625806,0.00039348,2]
[314462560,1708368641232,-150.0,0.00039366,2]
[314462561,1708368641242,-150.0,0.00039422,2]
[314462562,1708368641251,-177.53,0.00039448,2]
[314462563,1708368641260,-150.0,0.00039448,2]
[314462564,1708368641269,-500.0,0.00039448,2]
[314462565,1708368641278,-2507.73,0.00039458,2]
[314462566,1708368641288,-225.63152717,0.00039466,8]
[314462567,1708368641296,-844.25526315,0.0003948,8]
[314462568,1708368641306,-155.88765305,0.0003948,8]
[314462569,1708368641315,-155.88765305,0.0003948,8]
[314462570,1708368641324,-153.07672135,0.00039529,4]
[314462571,1708368641333,-5566.36,0.0003963,2]
[314462572,1708368641342,-1681.23,0.00039635,2]
[314462573,1708368641351,-155.0,0.0003964,2]
[314462574,1708368641360,-2507.73,0.00039659,2]
[314462575,1708368641370,-719.30593238,0.00039721,12]
[314462576,1708368641378,-210.78,0.00039726,2]
[314462577,1708368641388,-600.0,0.00039854,2]
[314462578,1708368641397,-2507.73,0.0003986,2]
[314462579,1708368641408,-511.21850472,0.00039882,9]
[314462580,1708368641417,-81551.0769631,0.0003989,6]
[314462581,1708368641427,-177.53,0.00039996,2]
[314462582,1708368641436,-150.0,0.00039996,2]
[314462583,1708368641445,-787.66706975,0.00039996,2]
[314462584,1708368641454,-255.0,0.0004,12]
[314462585,1708368641464,-19873.08352505,0.0004,7]
[314462586,1708368641475,-356.31074543,0.0004,12]
[314462587,1708368641484,-1000.0,0.0004,2]
[314462588,1708368641493,-1239.37742129,0.0004,2]
[314462589,1708368641502,-2507.73,0.00040061,2]
[314462590,1708368641511,-153.07672135,0.00040097,7]
[314462591,1708368641521,-12660.0,0.000401,10]
[314462592,1708368641530,-896.88,0.0004014,2]
[314462593,1708368641540,-222.93625806,0.00040172,2]
[314462594,1708368641549,-400.0,0.00040257,2]
[314462595,1708368641560,-2507.73,0.00040263,2]
[314462596,1708368641569,-4520.95,0.0004029,30]
[314462597,1708368641579,-564.08,0.0004029,2]
[314462598,1708368641588,-150.0,0.00040375,2]
[314462599,1708368641597,-2507.73,0.00040464,2]
[314462600,1708368641607,-248.37,0.00040473,2]
[314462601,1708368641617,-2989.52139739,0.00040497,14]
[314462602,1708368641627,-150.0,0.0004054,2]
[314462603,1708368641636,-177.53,0.00040544,2]
[314462604,1708368641645,-150.0,0.00040544,2]
[314462605,1708368641654,-430.02052462,0.00040662,2]
[314462606,1708368641664,-2507.73,0.00040665,2]
[314462607,1708368641673,-153.07672135,0.00040666,9]
[314462608,1708368641682,-10443.08,0.000407,7]
[314462609,1708368641692,-792.87,0.000407,7]
[314462610,1708368641701,-41534.3,0.000407,7]
[314462611,1708368641710,-28991.71,0.000407,7]
[314462612,1708368641720,-564.527442,0.0004072,14]
[314462613,1708368641729,-362.672816,0.0004072,14]
[314462614,1708368641738,-564.527442,0.0004072,14]
[314462615,1708368641748,-362.672816,0.0004072,14]
[314462616,1708368641757,-190.569383,0.0004072,14]
[314462617,1708368641767,-199785.271306,0.0004072,4]
[314462618,1708368641777,-1736.356122,0.0004072,30]
[314462619,1708368641786,-238.560631,0.0004072,30]
[314462620,1708368641796,-155.64402528,0.0004072,60]
[314462621,1708368641805,-300.0,0.0004072,35]
[314462622,1708368641814,-300.0,0.0004072,36]
[314462623,1708368641824,-1991.917289,0.0004072,30]
[314462624,1708368641834,-151.0,0.00040721,14]
[314462625,1708368641843,-264.703589,0.00040721,14]
[314462626,1708368641853,-1681.23,0.00040826,2]
[314462627,1708368641862,-2065.81327454,0.00040857,5]
[314462628,1708368641872,-2507.73,0.00040867,2]
[314462629,1708368641882,-222.93625806,0.00040996,2]
[314462630,1708368641892,-150.0,0.00041,2]
[314462631,1708368641902,-150.0,0.00041,2]
[314462632,1708368641912,-155.0,0.0004101,2]
[314462633,1708368641921,-2507.73,0.00041068,2]
[314462634,1708368641931,-177.53,0.00041092,2]
[314462635,1708368641940,-150.0,0.00041092,2]
[314462636,1708368641950,-168.454123,0.00041096,14]
[314462637,1708368641959,-515.35,0.000411,4]
[314462638,1708368641970,-515.35,0.000411,4]
[314462639,1708368641980,-515.35,0.000411,4]
[314462640,1708368641994,-515.35,0.000411,4]
[314462641,1708368642004,-515.35,0.000411,4]
[314462642,1708368642013,-515.35,0.000411,4]
[314462643,1708368642023,-515.35,0.000411,4]
[314462644,1708368642033,-515.35,0.000411,4]
[314462645,1708368642042,-515.35,0.000411,4]
[314462646,1708368642051,-515.35,0.000411,4]
[314462647,1708368642061,-515.35,0.000411,4]
[314462648,1708368642071,-515.35,0.000411,4]
[314462649,1708368642081,-515.35,0.000411,4]
[314462650,1708368642090,-515.35,0.000411,4]
[314462651,1708368642099,-515.35,0.000411,4]
[314462652,1708368642108,-515.35,0.000411,4]
[314462653,1708368642117,-515.35,0.000411,4]
[314462654,1708368642126,-515.35,0.000411,4]
[314462655,1708368642135,-515.35,0.000411,4]
[314462656,1708368642144,-515.35,0.000411,4]
[314462657,1708368642153,-46480.79913319,0.00041154,3]
[314462658,1708368642162,-340.0,0.00041217,5]
[314462659,1708368642171,-153.07672135,0.00041234,11]
[314462660,1708368642181,-2989.52139729,0.00041261,15]
[314462661,1708368642190,-2507.73,0.00041269,2]
[314462662,1708368642199,-166.76,0.0004137,2]
[314462663,1708368642208,-150.0,0.00041384,2]
[314462664,1708368642218,-2507.73,0.00041471,2]
[314462665,1708368642227,-1918284.99873211,0.000415,7]
[314462666,1708368642236,-792.87,0.000415,7]
[314462667,1708368642246,-41534.3,0.000415,7]
[314462668,1708368642255,-28991.71,0.000415,7]
[314462669,1708368642264,-150.0,0.00041548,2]
[314462670,1708368642273,-10443.08,0.000416,7]
[314462671,1708368642282,-177.53,0.0004164,2]
[314462672,1708368642291,-150.0,0.0004164,2]
[314462673,1708368642301,-150.0,0.00041658,2]
[314462674,1708368642310,-2507.73,0.00041672,2]
[314462675,1708368642319,-206.0,0.00041783,21]
[314462676,1708368642328,-153.07672135,0.00041803,13]
[314462677,1708368642338,-511.21850472,0.00041805,10]
[314462678,1708368642347,-151.0,0.00041873,14]
[314462679,1708368642356,-300.978402,0.00041873,2]
[314462680,1708368642366,-2507.73,0.00041873,2]
[314462681,1708368642374,-276.0,0.00041986,2]
[314462682,1708368642384,-1005.0,0.00041986,2]
[314462683,1708368642394,-858.0,0.00041986,2]
[314462684,1708368642403,-429.0,0.00041986,2]